[Event "Live Chess"]
[Site "Chess.com"]
[Date "2020.05.16"]
[Round "2.42"]
[White "Karas, Eugenia"]
[Black "Diakonova, Ekaterina"]
[Result "0-1"]
[ECO "B08"]
[WhiteElo "1833"]
[BlackElo "2137"]
[PlyCount "110"]
[EventDate "2020.??.??"]
[TimeControl "180+2"]
[WhiteClock "0:00:25"]
[BlackClock "0:00:07"]

1. d4 {[%emt 0:00:00]} Nf6 {[%emt 0:00:02]} 2. Nf3 {[%emt 0:00:02]} g6 {
[%emt 0:00:01]} 3. Nc3 {[%emt 0:00:03]} Bg7 {[%emt 0:00:01]} 4. e4 {[%emt 0:00:
03]} d6 {[%emt 0:00:01]} 5. Be3 {[%emt 0:00:01]} c6 {[%emt 0:00:07]} 6. Bd3 {
[%emt 0:00:03]} Nbd7 {[%emt 0:00:02]} 7. h3 {[%emt 0:00:01]} O-O {[%emt 0:00:
02]} 8. O-O {[%emt 0:00:02]} e5 {[%emt 0:00:01]} 9. dxe5 {[%emt 0:00:02]} dxe5
{[%emt 0:00:01]} 10. Qe2 {[%emt 0:00:08]} Qc7 {[%emt 0:00:01]} 11. Nd1 {
[%emt 0:00:12]} Rd8 {[%emt 0:00:15]} 12. c4 {[%emt 0:00:03]} Nf8 {[%emt 0:00:
04]} 13. Nc3 {[%emt 0:00:06]} Ne6 {[%emt 0:00:02]} 14. Rad1 {[%emt 0:00:05]}
Nd4 {[%emt 0:00:04]} 15. Bxd4 {[%emt 0:00:14]} exd4 {[%emt 0:00:01]} 16. Nb1 {
[%emt 0:00:03]} Nh5 {[%emt 0:00:11]} 17. Bc2 {[%emt 0:00:14]} Nf4 {[%emt 0:00:
23]} 18. Qd2 {[%emt 0:00:12]} c5 {[%emt 0:00:06]} 19. Na3 {[%emt 0:00:06]} a6 {
[%emt 0:00:01]} 20. Bd3 {[%emt 0:00:07]} Bh6 {[%emt 0:00:30]} 21. Qc2 {[%emt 0:
00:05]} Bd7 {[%emt 0:00:15]} 22. Rfe1 {[%emt 0:00:34]} Rab8 {[%emt 0:00:03]}
23. Nb1 {[%emt 0:00:03]} b5 {[%emt 0:00:08]} 24. cxb5 {[%emt 0:00:15]} axb5 {
[%emt 0:00:45]} 25. Nxd4 {[%emt 0:00:16]} Nxd3 {[%emt 0:00:02]} 26. Rxd3 {
[%emt 0:00:05]} Qa5 {[%emt 0:00:08]} 27. Nc3 {[%emt 0:00:32]} cxd4 {[%emt 0:00:
02]} 28. Rxd4 {[%emt 0:00:01]} Bg7 {[%emt 0:00:10]} 29. Rd3 {[%emt 0:00:04]}
Be6 {[%emt 0:00:03]} 30. Red1 {[%emt 0:00:03]} Bxc3 {[%emt 0:00:10]} 31. Rxd8+
{[%emt 0:00:02]} Rxd8 {[%emt 0:00:02]} 32. Rxd8+ {[%emt 0:00:01]} Qxd8 {
[%emt 0:00:01]} 33. Qxc3 {[%emt 0:00:02]} Qc8 {[%emt 0:00:05]} 34. Qb4 {
[%emt 0:00:09]} Qc1+ {[%emt 0:00:01]} 35. Kh2 {[%emt 0:00:01]} Qc4 {[%emt 0:00:
03]} 36. Qxc4 {[%emt 0:00:03]} Bxc4 {[%emt 0:00:02]} 37. b3 {[%emt 0:00:01]}
Bd3 {[%emt 0:00:01]} 38. f3 {[%emt 0:00:01]} Bc2 {[%emt 0:00:02]} 39. Kg1 {
[%emt 0:00:01]} Kg7 {[%emt 0:00:01]} 40. Kf2 {[%emt 0:00:01]} Kf6 {[%emt 0:00:
01]} 41. Ke2 {[%emt 0:00:01]} Bb1 {[%emt 0:00:03]} 42. a3 {[%emt 0:00:02]} Ba2
{[%emt 0:00:01]} 43. b4 {[%emt 0:00:05]} Bc4+ {[%emt 0:00:01]} 44. Ke3 {
[%emt 0:00:01]} g5 {[%emt 0:00:04]} 45. g3 {[%emt 0:00:02]} h5 {[%emt 0:00:02]}
46. f4 {[%emt 0:00:02]} h4 {[%emt 0:00:03]} 47. g4 {[%emt 0:00:03]} Bf1 {
[%emt 0:00:03]} 48. e5+ {[%emt 0:00:01]} Ke6 {[%emt 0:00:02]} 49. fxg5 {
[%emt 0:00:02]} Bxh3 {[%emt 0:00:02]} 50. Kf4 {[%emt 0:00:01]} Bf1 {[%emt 0:00:
02]} 51. g6 {[%emt 0:00:08]} fxg6 {[%emt 0:00:01]} 52. g5 {[%emt 0:00:01]} h3 {
[%emt 0:00:01]} 53. Kg3 {[%emt 0:00:02]} Kxe5 {[%emt 0:00:01]} 54. Kh2 {
[%emt 0:00:05]} Kf5 {[%emt 0:00:01]} 55. Kg1 {[%emt 0:00:01]} Bg2 {[%emt 0:00:
01] Diakonova, Ekaterina won by resignation} 0-1

[Event "Live Chess"]
[Site "Chess.com"]
[Date "2020.05.16"]
[Round "2.43"]
[White "Diakonova, Ekaterina"]
[Black "Karas, Eugenia"]
[Result "1/2-1/2"]
[ECO "A14"]
[WhiteElo "2131"]
[BlackElo "1839"]
[PlyCount "69"]
[EventDate "2020.??.??"]
[TimeControl "180+2"]
[WhiteClock "0:00:52"]
[BlackClock "0:00:30"]

1. Nf3 {[%emt 0:00:00]} d5 {[%emt 0:00:02]} 2. g3 {[%emt 0:00:01]} c5 {[%emt 0:
00:11]} 3. Bg2 {[%emt 0:00:01]} Nf6 {[%emt 0:00:01]} 4. O-O {[%emt 0:00:01]} e6
{[%emt 0:00:01]} 5. b3 {[%emt 0:00:00]} Be7 {[%emt 0:00:01]} 6. Bb2 {[%emt 0:
00:00]} O-O {[%emt 0:00:01]} 7. d3 {[%emt 0:00:02]} Nc6 {[%emt 0:00:01]} 8.
Nbd2 {[%emt 0:00:05]} b6 {[%emt 0:00:02]} 9. Ne5 {[%emt 0:00:19]} Nxe5 {
[%emt 0:00:06]} 10. Bxe5 {[%emt 0:00:02]} Bb7 {[%emt 0:00:03]} 11. c4 {[%emt 0:
00:22]} Nd7 {[%emt 0:00:07]} 12. Bb2 {[%emt 0:00:05]} Bf6 {[%emt 0:00:06]} 13.
Qc2 {[%emt 0:00:07]} Bxb2 {[%emt 0:00:02]} 14. Qxb2 {[%emt 0:00:01]} Nf6 {
[%emt 0:00:01]} 15. b4 {[%emt 0:00:08]} cxb4 {[%emt 0:00:09]} 16. Qxb4 {
[%emt 0:00:03]} Qd7 {[%emt 0:00:04]} 17. a4 {[%emt 0:00:23]} Rac8 {[%emt 0:00:
15]} 18. a5 {[%emt 0:00:10]} dxc4 {[%emt 0:00:10]} 19. Bxb7 {[%emt 0:00:02]}
Qxb7 {[%emt 0:00:03]} 20. Nxc4 {[%emt 0:00:03]} Nd5 {[%emt 0:00:14]} 21. Qb3 {
[%emt 0:00:14]} Qc6 {[%emt 0:00:31]} 22. e4 {[%emt 0:00:17]} Nf6 {[%emt 0:00:
15]} 23. axb6 {[%emt 0:00:01]} axb6 {[%emt 0:00:03]} 24. Qxb6 {[%emt 0:00:38]}
Qxb6 {[%emt 0:00:03]} 25. Nxb6 {[%emt 0:00:01]} Rc3 {[%emt 0:00:04]} 26. Rfd1 {
[%emt 0:00:06]} Rd8 {[%emt 0:00:03]} 27. f3 {[%emt 0:00:05]} g6 {[%emt 0:00:05]
} 28. d4 {[%emt 0:00:06]} Rxf3 {[%emt 0:00:05]} 29. e5 {[%emt 0:00:07]} Nd5 {
[%emt 0:00:07]} 30. Nxd5 {[%emt 0:00:04]} Rxd5 {[%emt 0:00:02]} 31. Ra8+ {
[%emt 0:00:05]} Kg7 {[%emt 0:00:02]} 32. Ra7 {[%emt 0:00:01]} Kg8 {[%emt 0:00:
17]} 33. Ra8+ {[%emt 0:00:02]} Kg7 {[%emt 0:00:01]} 34. Ra7 {[%emt 0:00:01]}
Kg8 {[%emt 0:00:01]} 35. Ra8+ {[%emt 0:00:01] Game drawn by repetition} 1/2-1/2

[Event "Live Chess"]
[Site "Chess.com"]
[Date "2020.05.16"]
[Round "2.44"]
[White "Karas, Eugenia"]
[Black "Diakonova, Ekaterina"]
[Result "0-1"]
[ECO "D00"]
[WhiteElo "1836"]
[BlackElo "2134"]
[PlyCount "92"]
[EventDate "2020.??.??"]
[TimeControl "180+2"]
[WhiteClock "0:01:08"]
[BlackClock "0:00:17"]

1. d4 {[%emt 0:00:00]} Nf6 {[%emt 0:00:01]} 2. Nf3 {[%emt 0:00:01]} g6 {
[%emt 0:00:01]} 3. Nc3 {[%emt 0:00:04]} d5 {[%emt 0:00:01]} 4. Bf4 {[%emt 0:00:
01]} Bg7 {[%emt 0:00:01]} 5. Nb5 {[%emt 0:00:01]} Na6 {[%emt 0:00:03]} 6. e3 {
[%emt 0:00:01]} c6 {[%emt 0:00:09]} 7. Nc3 {[%emt 0:00:01]} Nc7 {[%emt 0:00:02]
} 8. Be2 {[%emt 0:00:02]} Nh5 {[%emt 0:00:09]} 9. Be5 {[%emt 0:00:07]} f6 {
[%emt 0:00:12]} 10. Bg3 {[%emt 0:00:09]} Nxg3 {[%emt 0:00:01]} 11. hxg3 {
[%emt 0:00:01]} e5 {[%emt 0:00:19]} 12. Nh4 {[%emt 0:00:24]} O-O {[%emt 0:00:
20]} 13. dxe5 {[%emt 0:00:34]} fxe5 {[%emt 0:00:01]} 14. Bg4 {[%emt 0:00:12]}
Qf6 {[%emt 0:00:18]} 15. O-O {[%emt 0:00:23]} e4 {[%emt 0:00:21]} 16. Bxc8 {
[%emt 0:00:12]} Raxc8 {[%emt 0:00:02]} 17. f3 {[%emt 0:00:07]} g5 {[%emt 0:00:
07]} 18. fxe4 {[%emt 0:00:17]} Qxf1+ {[%emt 0:00:02]} 19. Qxf1 {[%emt 0:00:04]}
Rxf1+ {[%emt 0:00:01]} 20. Rxf1 {[%emt 0:00:02]} gxh4 {[%emt 0:00:01]} 21. exd5
{[%emt 0:00:03]} Bxc3 {[%emt 0:00:06]} 22. bxc3 {[%emt 0:00:14]} Nxd5 {[%emt 0:
00:01]} 23. gxh4 {[%emt 0:00:04]} Nxe3 {[%emt 0:00:04]} 24. Rb1 {[%emt 0:00:04]
} b6 {[%emt 0:00:02]} 25. Rb2 {[%emt 0:00:04]} Rf8 {[%emt 0:00:06]} 26. a4 {
[%emt 0:00:10]} Rf1+ {[%emt 0:00:06]} 27. Kh2 {[%emt 0:00:02]} Rf2 {[%emt 0:00:
04]} 28. a5 {[%emt 0:00:03]} Rxg2+ {[%emt 0:00:08]} 29. Kh1 {[%emt 0:00:06]} b5
{[%emt 0:00:01]} 30. Rb4 {[%emt 0:00:09]} Rg4 {[%emt 0:00:04]} 31. Rxg4+ {
[%emt 0:00:03]} Nxg4 {[%emt 0:00:01]} 32. Kg2 {[%emt 0:00:01]} h5 {[%emt 0:00:
02]} 33. Kf3 {[%emt 0:00:01]} Kf7 {[%emt 0:00:01]} 34. Kf4 {[%emt 0:00:03]} Kf6
{[%emt 0:00:01]} 35. Ke4 {[%emt 0:00:02]} Ne5 {[%emt 0:00:10]} 36. Kf4 {
[%emt 0:00:04]} a6 {[%emt 0:00:05]} 37. Ke4 {[%emt 0:00:02]} Nc4 {[%emt 0:00:
01]} 38. Kd4 {[%emt 0:00:03]} Ke6 {[%emt 0:00:01]} 39. Kc5 {[%emt 0:00:01]} Kd7
{[%emt 0:00:01]} 40. Kd4 {[%emt 0:00:03]} Kd6 {[%emt 0:00:02]} 41. Ke4 {
[%emt 0:00:01]} Nxa5 {[%emt 0:00:04]} 42. Kf5 {[%emt 0:00:02]} Nc4 {[%emt 0:00:
02]} 43. Kg5 {[%emt 0:00:01]} Ne5 {[%emt 0:00:01]} 44. Kxh5 {[%emt 0:00:01]}
Nf3 {[%emt 0:00:01]} 45. Kg4 {[%emt 0:00:03]} Nxh4 {[%emt 0:00:01]} 46. Kxh4 {
[%emt 0:00:01]} a5 {[%emt 0:00:00] Diakonova, Ekaterina won by resignation} 0-1

[Event "Live Chess"]
[Site "Chess.com"]
[Date "2020.05.16"]
[Round "3.11"]
[White "Somton, Anita"]
[Black "Bayat, Shohreh"]
[Result "1/2-1/2"]
[ECO "A84"]
[WhiteElo "1933"]
[BlackElo "2065"]
[PlyCount "99"]
[EventDate "2020.??.??"]
[TimeControl "180+2"]
[WhiteClock "0:00:19"]
[BlackClock "0:00:21"]

1. d4 {[%emt 0:00:00]} e6 {[%emt 0:00:01]} 2. Nf3 {[%emt 0:00:01]} d5 {[%emt 0:
00:01]} 3. c4 {[%emt 0:00:01]} c6 {[%emt 0:00:02]} 4. Qc2 {[%emt 0:00:03]} f5 {
[%emt 0:00:04]} 5. e3 {[%emt 0:00:07]} Nf6 {[%emt 0:00:01]} 6. Be2 {[%emt 0:00:
02]} Bd6 {[%emt 0:00:02]} 7. O-O {[%emt 0:00:02]} O-O {[%emt 0:00:01]} 8. Nc3 {
[%emt 0:00:04]} Ne4 {[%emt 0:00:05]} 9. c5 {[%emt 0:00:31]} Bc7 {[%emt 0:00:02]
} 10. b4 {[%emt 0:00:02]} a6 {[%emt 0:00:02]} 11. a4 {[%emt 0:00:04]} Nd7 {
[%emt 0:00:02]} 12. Bb2 {[%emt 0:00:15]} Qf6 {[%emt 0:00:27]} 13. b5 {[%emt 0:
00:11]} axb5 {[%emt 0:00:03]} 14. axb5 {[%emt 0:00:02]} Rxa1 {[%emt 0:00:03]}
15. Rxa1 {[%emt 0:00:02]} e5 {[%emt 0:00:04]} 16. b6 {[%emt 0:00:19]} Bb8 {
[%emt 0:00:02]} 17. Nd1 {[%emt 0:00:06]} exd4 {[%emt 0:00:04]} 18. Bxd4 {
[%emt 0:00:04]} Qh6 {[%emt 0:00:17]} 19. Ra8 {[%emt 0:00:20]} Ng5 {[%emt 0:00:
12]} 20. h3 {[%emt 0:00:14]} Nxf3+ {[%emt 0:00:07]} 21. Bxf3 {[%emt 0:00:02]}
f4 {[%emt 0:00:05]} 22. Bg4 {[%emt 0:00:11]} fxe3 {[%emt 0:00:07]} 23. Bxe3 {
[%emt 0:00:05]} Qf6 {[%emt 0:00:06]} 24. Qd2 {[%emt 0:00:12]} Qe5 {[%emt 0:00:
05]} 25. Bf3 {[%emt 0:00:24]} Nf6 {[%emt 0:00:25]} 26. Nc3 {[%emt 0:00:10]}
Qh2+ {[%emt 0:00:16]} 27. Kf1 {[%emt 0:00:01]} Qh1+ {[%emt 0:00:04]} 28. Ke2 {
[%emt 0:00:01]} Qh2 {[%emt 0:00:01]} 29. Qd4 {[%emt 0:00:03]} Be5 {[%emt 0:00:
05]} 30. Qd2 {[%emt 0:00:01]} Bd7 {[%emt 0:00:15]} 31. Ra7 {[%emt 0:00:01]} Bc8
{[%emt 0:00:01]} 32. Ra8 {[%emt 0:00:01]} Bb8 {[%emt 0:00:04]} 33. Qd4 {
[%emt 0:00:04]} Qe5 {[%emt 0:00:02]} 34. Qxe5 {[%emt 0:00:03]} Bxe5 {[%emt 0:
00:00]} 35. Nd1 {[%emt 0:00:02]} Bf5 {[%emt 0:00:06]} 36. Rxf8+ {[%emt 0:00:02]
} Kxf8 {[%emt 0:00:00]} 37. g4 {[%emt 0:00:03]} Bc8 {[%emt 0:00:04]} 38. g5 {
[%emt 0:00:01]} Nd7 {[%emt 0:00:03]} 39. h4 {[%emt 0:00:01]} d4 {[%emt 0:00:01]
} 40. Bd2 {[%emt 0:00:01]} Nxc5 {[%emt 0:00:01]} 41. Bb4 {[%emt 0:00:01]} Bd6 {
[%emt 0:00:02]} 42. Nb2 {[%emt 0:00:02]} Ne4 {[%emt 0:00:05]} 43. Bxd6+ {
[%emt 0:00:06]} Nxd6 {[%emt 0:00:02]} 44. Kd3 {[%emt 0:00:01]} c5 {[%emt 0:00:
07]} 45. Nc4 {[%emt 0:00:02]} Ke7 {[%emt 0:00:07]} 46. Ne5 {[%emt 0:00:03]} Be6
{[%emt 0:00:05]} 47. Kd2 {[%emt 0:00:03]} c4 {[%emt 0:00:09]} 48. h5 {[%emt 0:
00:02]} Bd7 {[%emt 0:00:06]} 49. g6 {[%emt 0:00:02]} hxg6 {[%emt 0:00:02]} 50.
hxg6 {[%emt 0:00:02] Game drawn by agreement} 1/2-1/2

[Event "Live Chess"]
[Site "Chess.com"]
[Date "2020.05.16"]
[Round "3.12"]
[White "Bayat, Shohreh"]
[Black "Somton, Anita"]
[Result "1-0"]
[ECO "B13"]
[WhiteElo "2070"]
[BlackElo "1928"]
[PlyCount "79"]
[EventDate "2020.??.??"]
[TimeControl "180+2"]
[WhiteClock "0:00:11"]
[BlackClock "0:00:42"]

1. e4 {[%emt 0:00:01]} c6 {[%emt 0:00:02]} 2. d4 {[%emt 0:00:01]} d5 {[%emt 0:
00:01]} 3. exd5 {[%emt 0:00:00]} cxd5 {[%emt 0:00:01]} 4. Bd3 {[%emt 0:00:01]}
Nc6 {[%emt 0:00:02]} 5. c3 {[%emt 0:00:01]} Qc7 {[%emt 0:00:01]} 6. Ne2 {
[%emt 0:00:06]} Bg4 {[%emt 0:00:09]} 7. f3 {[%emt 0:00:05]} Bh5 {[%emt 0:00:02]
} 8. Bf4 {[%emt 0:00:01]} Qd7 {[%emt 0:00:03]} 9. Nd2 {[%emt 0:00:06]} Nf6 {
[%emt 0:00:02]} 10. O-O {[%emt 0:00:05]} e6 {[%emt 0:00:03]} 11. Bg3 {[%emt 0:
00:01]} Bd6 {[%emt 0:00:03]} 12. Nf4 {[%emt 0:00:02]} Bg6 {[%emt 0:00:07]} 13.
Qc2 {[%emt 0:00:09]} Rc8 {[%emt 0:00:10]} 14. Bxg6 {[%emt 0:00:18]} hxg6 {
[%emt 0:00:02]} 15. Qd3 {[%emt 0:00:02]} g5 {[%emt 0:00:10]} 16. Ne2 {[%emt 0:
00:03]} Bxg3 {[%emt 0:00:03]} 17. Nxg3 {[%emt 0:00:00]} O-O {[%emt 0:00:03]}
18. Rae1 {[%emt 0:00:03]} Qd6 {[%emt 0:00:11]} 19. Qe3 {[%emt 0:00:11]} Nh7 {
[%emt 0:00:10]} 20. f4 {[%emt 0:00:07]} g4 {[%emt 0:00:15]} 21. f5 {[%emt 0:00:
09]} Rfe8 {[%emt 0:00:11]} 22. Qf2 {[%emt 0:00:17]} Nf6 {[%emt 0:00:08]} 23.
fxe6 {[%emt 0:00:09]} Rxe6 {[%emt 0:00:02]} 24. Nf5 {[%emt 0:00:06]} Qd7 {
[%emt 0:00:06]} 25. Qf4 {[%emt 0:00:11]} Rxe1 {[%emt 0:00:23]} 26. Rxe1 {
[%emt 0:00:02]} Re8 {[%emt 0:00:02]} 27. Rf1 {[%emt 0:00:04]} Re2 {[%emt 0:00:
07]} 28. Nxg7 {[%emt 0:00:07]} Kxg7 {[%emt 0:00:13]} 29. Qxf6+ {[%emt 0:00:01]}
Kg8 {[%emt 0:00:04]} 30. Qg5+ {[%emt 0:00:06]} Kf8 {[%emt 0:00:03]} 31. Qf4 {
[%emt 0:00:10]} Qe6 {[%emt 0:00:12]} 32. Rf2 {[%emt 0:00:10]} Re1+ {[%emt 0:00:
04]} 33. Nf1 {[%emt 0:00:02]} Ne7 {[%emt 0:00:05]} 34. Qb8+ {[%emt 0:00:06]}
Kg7 {[%emt 0:00:02]} 35. Qg3 {[%emt 0:00:10]} Ng6 {[%emt 0:00:05]} 36. h3 {
[%emt 0:00:06]} gxh3 {[%emt 0:00:03]} 37. gxh3 {[%emt 0:00:02]} Kh7 {[%emt 0:
00:07]} 38. Rxf7+ {[%emt 0:00:06]} Kg8 {[%emt 0:00:10]} 39. Rf6 {[%emt 0:00:10]
} Qe4 {[%emt 0:00:22]} 40. Rxg6+ {[%emt 0:00:03] Bayat, Shohreh won by
resignation} 1-0

[Event "Live Chess"]
[Site "Chess.com"]
[Date "2020.05.16"]
[Round "3.13"]
[White "Somton, Anita"]
[Black "Bayat, Shohreh"]
[Result "1/2-1/2"]
[ECO "A85"]
[WhiteElo "1931"]
[BlackElo "2067"]
[PlyCount "50"]
[EventDate "2020.??.??"]
[TimeControl "180+2"]
[WhiteClock "0:02:47"]
[BlackClock "0:02:17"]

1. d4 {[%emt 0:00:00]} e6 {[%emt 0:00:00]} 2. Nf3 {[%emt 0:00:01]} d5 {[%emt 0:
00:01]} 3. c4 {[%emt 0:00:01]} c6 {[%emt 0:00:01]} 4. Qc2 {[%emt 0:00:02]} f5 {
[%emt 0:00:02]} 5. e3 {[%emt 0:00:02]} Nf6 {[%emt 0:00:01]} 6. Be2 {[%emt 0:00:
01]} Bd6 {[%emt 0:00:02]} 7. O-O {[%emt 0:00:02]} Nbd7 {[%emt 0:00:03]} 8. Nc3
{[%emt 0:00:04]} Ne4 {[%emt 0:00:02]} 9. c5 {[%emt 0:00:08]} Bc7 {[%emt 0:00:
01]} 10. b4 {[%emt 0:00:01]} a6 {[%emt 0:00:02]} 11. a4 {[%emt 0:00:02]} Qf6 {
[%emt 0:00:04]} 12. Bb2 {[%emt 0:00:04]} e5 {[%emt 0:00:09]} 13. b5 {[%emt 0:
00:06]} axb5 {[%emt 0:00:02]} 14. axb5 {[%emt 0:00:02]} Nxc3 {[%emt 0:00:01]}
15. Bxc3 {[%emt 0:00:02]} e4 {[%emt 0:00:01]} 16. Rxa8 {[%emt 0:00:08]} O-O {
[%emt 0:00:03]} 17. Nd2 {[%emt 0:00:07]} f4 {[%emt 0:00:01]} 18. b6 {[%emt 0:
00:13]} fxe3 {[%emt 0:00:17]} 19. fxe3 {[%emt 0:00:06]} Bxh2+ {[%emt 0:00:03]}
20. Kxh2 {[%emt 0:00:08]} Qh6+ {[%emt 0:00:01]} 21. Kg1 {[%emt 0:00:08]} Qxe3+
{[%emt 0:00:01]} 22. Kh1 {[%emt 0:00:01]} Qh6+ {[%emt 0:00:01]} 23. Kg1 {
[%emt 0:00:01]} Qe3+ {[%emt 0:00:01]} 24. Kh1 {[%emt 0:00:01]} Qh6+ {[%emt 0:
00:01]} 25. Kg1 {[%emt 0:00:01]} Qe3+ {[%emt 0:00:01] Game drawn by repetition}
1/2-1/2

[Event "Live Chess"]
[Site "Chess.com"]
[Date "2020.05.16"]
[Round "3.14"]
[White "Bayat, Shohreh"]
[Black "Somton, Anita"]
[Result "1/2-1/2"]
[ECO "B13"]
[WhiteElo "2064"]
[BlackElo "1934"]
[PlyCount "108"]
[EventDate "2020.??.??"]
[TimeControl "180+2"]
[WhiteClock "0:00:26"]
[BlackClock "0:01:09"]

1. e4 {[%emt 0:00:00]} c6 {[%emt 0:00:01]} 2. d4 {[%emt 0:00:01]} d5 {[%emt 0:
00:01]} 3. exd5 {[%emt 0:00:00]} cxd5 {[%emt 0:00:01]} 4. Bd3 {[%emt 0:00:00]}
Nc6 {[%emt 0:00:01]} 5. c3 {[%emt 0:00:01]} Qc7 {[%emt 0:00:01]} 6. h3 {
[%emt 0:00:02]} Nf6 {[%emt 0:00:04]} 7. Nf3 {[%emt 0:00:02]} g6 {[%emt 0:00:07]
} 8. Bg5 {[%emt 0:00:06]} Bg7 {[%emt 0:00:03]} 9. O-O {[%emt 0:00:05]} O-O {
[%emt 0:00:11]} 10. Qc1 {[%emt 0:00:12]} Bd7 {[%emt 0:00:24]} 11. Bh6 {[%emt 0:
00:04]} Rac8 {[%emt 0:00:11]} 12. Bxg7 {[%emt 0:00:04]} Kxg7 {[%emt 0:00:01]}
13. Qe3 {[%emt 0:00:19]} Rfe8 {[%emt 0:00:12]} 14. Nbd2 {[%emt 0:00:05]} a6 {
[%emt 0:00:10]} 15. Ne5 {[%emt 0:00:11]} b5 {[%emt 0:00:18]} 16. a3 {[%emt 0:
00:02]} e6 {[%emt 0:00:18]} 17. Ndf3 {[%emt 0:00:08]} Ne7 {[%emt 0:00:04]} 18.
Rae1 {[%emt 0:00:06]} Nf5 {[%emt 0:00:05]} 19. Bxf5 {[%emt 0:00:01]} exf5 {
[%emt 0:00:04]} 20. Qf4 {[%emt 0:00:18]} Be6 {[%emt 0:00:10]} 21. Nd2 {[%emt 0:
00:08]} a5 {[%emt 0:00:07]} 22. Nb3 {[%emt 0:00:04]} Rb8 {[%emt 0:00:12]} 23.
Nc5 {[%emt 0:00:04]} Rb6 {[%emt 0:00:13]} 24. Nxg6 {[%emt 0:00:12]} Qxf4 {
[%emt 0:00:04]} 25. Nxf4 {[%emt 0:00:00]} b4 {[%emt 0:00:14]} 26. axb4 {
[%emt 0:00:03]} axb4 {[%emt 0:00:01]} 27. Nfxe6+ {[%emt 0:00:02]} fxe6 {
[%emt 0:00:02]} 28. Re3 {[%emt 0:00:07]} bxc3 {[%emt 0:00:06]} 29. bxc3 {
[%emt 0:00:02]} Kf7 {[%emt 0:00:02]} 30. Rfe1 {[%emt 0:00:01]} Ne4 {[%emt 0:00:
12]} 31. Nxe4 {[%emt 0:00:05]} dxe4 {[%emt 0:00:02]} 32. f3 {[%emt 0:00:01]}
Rc8 {[%emt 0:00:02]} 33. fxe4 {[%emt 0:00:02]} fxe4 {[%emt 0:00:01]} 34. Rf1+ {
[%emt 0:00:08]} Ke7 {[%emt 0:00:01]} 35. Rc1 {[%emt 0:00:05]} Rbc6 {[%emt 0:00:
02]} 36. Kf2 {[%emt 0:00:02]} Rc4 {[%emt 0:00:03]} 37. Ke2 {[%emt 0:00:05]}
Rxd4 {[%emt 0:00:02]} 38. cxd4 {[%emt 0:00:05]} Rxc1 {[%emt 0:00:01]} 39. Rxe4
{[%emt 0:00:01]} Rc2+ {[%emt 0:00:01]} 40. Kf3 {[%emt 0:00:01]} Kf6 {[%emt 0:
00:03]} 41. Rf4+ {[%emt 0:00:03]} Kg5 {[%emt 0:00:02]} 42. h4+ {[%emt 0:00:04]}
Kg6 {[%emt 0:00:01]} 43. g4 {[%emt 0:00:02]} Rc3+ {[%emt 0:00:01]} 44. Ke4 {
[%emt 0:00:01]} Rh3 {[%emt 0:00:02]} 45. h5+ {[%emt 0:00:02]} Kg5 {[%emt 0:00:
02]} 46. Rf7 {[%emt 0:00:09]} h6 {[%emt 0:00:04]} 47. Rg7+ {[%emt 0:00:02]} Kh4
{[%emt 0:00:02]} 48. Ke5 {[%emt 0:00:05]} Re3+ {[%emt 0:00:03]} 49. Kd6 {
[%emt 0:00:01]} Rd3 {[%emt 0:00:02]} 50. Kxe6 {[%emt 0:00:02]} Rxd4 {[%emt 0:
00:01]} 51. Rg6 {[%emt 0:00:02]} Rxg4 {[%emt 0:00:02]} 52. Rxh6 {[%emt 0:00:03]
} Rg5 {[%emt 0:00:01]} 53. Rh8 {[%emt 0:00:01]} Rxh5 {[%emt 0:00:01]} 54. Rxh5+
{[%emt 0:00:01]} Kxh5 {[%emt 0:00:01] Game drawn by insufficient material}
1/2-1/2

[Event "Live Chess"]
[Site "Chess.com"]
[Date "2020.05.16"]
[Round "3.21"]
[White "Sucikova, Svetlana"]
[Black "Diakonova, Ekaterina"]
[Result "1-0"]
[ECO "E63"]
[WhiteElo "2135"]
[BlackElo "2126"]
[PlyCount "69"]
[EventDate "2020.??.??"]
[TimeControl "180+2"]
[WhiteClock "0:00:21"]
[BlackClock "0:00:32"]

1. Nf3 {[%emt 0:00:02]} Nf6 {[%emt 0:00:01]} 2. g3 {[%emt 0:00:01]} g6 {
[%emt 0:00:01]} 3. Bg2 {[%emt 0:00:01]} Bg7 {[%emt 0:00:01]} 4. O-O {[%emt 0:
00:01]} O-O {[%emt 0:00:01]} 5. c4 {[%emt 0:00:01]} d6 {[%emt 0:00:06]} 6. d4 {
[%emt 0:00:02]} Nc6 {[%emt 0:00:03]} 7. Nc3 {[%emt 0:00:02]} Bd7 {[%emt 0:00:
01]} 8. Re1 {[%emt 0:00:06]} a6 {[%emt 0:00:18]} 9. h3 {[%emt 0:00:05]} Qc8 {
[%emt 0:00:07]} 10. Kh2 {[%emt 0:00:02]} e5 {[%emt 0:00:11]} 11. dxe5 {[%emt 0:
00:17]} dxe5 {[%emt 0:00:03]} 12. e4 {[%emt 0:00:01]} h6 {[%emt 0:01:23]} 13.
Nd5 {[%emt 0:00:04]} Kh7 {[%emt 0:00:04]} 14. a3 {[%emt 0:00:16]} Ng8 {[%emt 0:
00:04]} 15. Qc2 {[%emt 0:00:29]} f5 {[%emt 0:00:07]} 16. Nh4 {[%emt 0:00:01]}
Nd4 {[%emt 0:00:03]} 17. Qd3 {[%emt 0:00:23]} b5 {[%emt 0:00:32]} 18. c5 {
[%emt 0:00:09]} Rb8 {[%emt 0:00:12]} 19. Be3 {[%emt 0:00:06]} c6 {[%emt 0:00:
04]} 20. Nb6 {[%emt 0:00:07]} Qc7 {[%emt 0:00:01]} 21. Bxd4 {[%emt 0:00:12]}
exd4 {[%emt 0:00:01]} 22. Nxd7 {[%emt 0:00:01]} Qxd7 {[%emt 0:00:01]} 23. exf5
{[%emt 0:00:02]} gxf5 {[%emt 0:00:03]} 24. Bf3 {[%emt 0:00:25]} Ne7 {[%emt 0:
00:02]} 25. Re2 {[%emt 0:00:20]} Nd5 {[%emt 0:00:01]} 26. Bxd5 {[%emt 0:00:02]}
Qxd5 {[%emt 0:00:02]} 27. b4 {[%emt 0:00:04]} Rbe8 {[%emt 0:00:04]} 28. Rae1 {
[%emt 0:00:02]} Rxe2 {[%emt 0:00:02]} 29. Rxe2 {[%emt 0:00:00]} Kg8 {[%emt 0:
00:01]} 30. Ng6 {[%emt 0:00:02]} Rf7 {[%emt 0:00:05]} 31. Ne7+ {[%emt 0:00:02]}
Rxe7 {[%emt 0:00:01]} 32. Rxe7 {[%emt 0:00:00]} Qc4 {[%emt 0:00:01]} 33. Qxf5 {
[%emt 0:00:06]} d3 {[%emt 0:00:01]} 34. Re8+ {[%emt 0:00:02]} Bf8 {[%emt 0:00:
02]} 35. Rxf8+ {[%emt 0:00:01] Sucikova, Svetlana won by resignation} 1-0